[Event "WSTCC-50 2024"]
[Site "Krakow"]
[Date "2024.07.02"]
[Round "1.21"]
[White "Baginskaite, Kamile"]
[Black "Plotkin, Victor"]
[Result "1/2-1/2"]
[ECO "D31"]
[WhiteElo "2057"]
[BlackElo "2264"]
[Annotator "RC"]
[PlyCount "137"]
[EventDate "2024.07.01"]
[EventType "team-tourn"]
[EventCountry "POL"]
[SourceTitle "playchess.com"]
[Source "ChessBase"]
[SourceQuality "1"]
[TimeControl "40/5400+30:1800+30"]

1. d4 {[%emt 0:02:14]} d5 {[%emt 0:00:49]} 2. c4 {[%emt 0:00:07]} e6 {[%emt 0:00:13]} 3. Nc3 {[%emt 0:00:07]} Be7 {[%emt 0:00:19]} 4. Nf3 {[%emt 0:01:55]} Nf6 {[%emt 0:00:48]} 5. Bg5 {[%emt 0:00:56]} Nbd7 {[%emt 0:02:28]} 6. e3 {[%emt 0:04:43]} h6 {[%emt 0:03:10]} 7. Bh4 {[%emt 0:01:46]} c6 {[%emt 0:04:45]} 8. cxd5 {[%emt 0:03:39]} exd5 {[%emt 0:02:09]} 9. Bd3 {[%emt 0:20:10]} Ne4 {[%emt 0:08:29]} 10. Bxe7 {[%emt 0:00:09]} Qxe7 {[%emt 0:00:52]} 11. Bxe4 {[%emt 0:09:30]} dxe4 {[%emt 0:00:16]} 12. Nd2 {[%emt 0:00:04]} Nf6 {[%emt 0:03:47]} 13. Qc2 {[%emt 0:01:48]} Bf5 {[%emt 0:01:13]} 14. O-O {[%emt 0:03:00]} O-O {[%emt 0:01:41]} 15. a3 {[%emt 0:08:26]} Rfe8 {[%emt 0:09:51]} 16. b4 {[%emt 0:00:07]} Rac8 {[%emt 0:02:46]} 17. Rac1 {[%emt 0:05:20]} b6 {[%emt 0:06:39]} 18. Nc4 {[%emt 0:03:15]} Qe6 {[%emt 0:11:07]} 19. Ne2 {[%emt 0:03:23]} Nd5 {[%emt 0:06:00]} 20. Ng3 {[%emt 0:18:20]} Bh7 {[%emt 0:02:23]} 21. Qe2 {[%emt 0:00:15]} f5 {[%emt 0:04:57]} 22. f4 {[%emt 0:01:21]} exf3 {[%emt 0:04:17]} 23. Qxf3 {[%emt 0:01:02]} Rf8 {[%emt 0:06:54]} 24. Ne2 {[%emt 0:01:19]} g5 {[%emt 0:07:37]} 25. Nc3 {[%emt 0:04:10]} Nf6 {[%emt 0:04:51]} 26. Nd2 {[%emt 0:04:33]} Rfe8 {[%emt 0:00:28]} 27. Rce1 {[%emt 0:00:08]} c5 {[%emt 0:01:12]} 28. dxc5 {[%emt 0:00:10]} bxc5 {[%emt 0:00:15]} 29. b5 {[%emt 0:00:28]} Qe5 {[%emt 0:00:31]} 30. Ndb1 {[%emt 0:01:26]} Ng4 {[%emt 0:02:10]} 31. Qd5+ {[%emt 0:01:19]} Kg7 {[%emt 0:00:49]} 32. Qxe5+ {[%emt 0:00:25]} Rxe5 {[%emt 0:00:13]} 33. g3 {[%emt 0:00:35]} Rce8 {[%emt 0:01:00]} 34. Nd2 {[%emt 0:00:24]} Rxe3 {[%emt 0:00:52]} 35. Rxe3 {[%emt 0:00:06]} Rxe3 {[%emt 0:00:13]} 36. Rc1 {[%emt 0:00:38]} Ne5 {[%emt 0:00:36]} 37. Kf2 {[%emt 0:00:57]} Rd3 {[%emt 0:00:25]} 38. Ke2 {[%emt 0:00:23]} Bg6 {[%emt 0:00:48]} 39. Nb3 {[%emt 0:00:37]} Bh5+ {[%emt 0:00:21]} 40. Kf2 {[%emt 0:00:30]} c4 {[%emt 0:01:00]} 41. Nc5 {[%emt 0:04:18]} Kf7 {[%emt 0:09:59]} 42. Rc2 {[%emt 0:05:58]} Ng4+ {[%emt 0:02:07]} 43. Kg1 {[%emt 0:01:31]} Re3 {[%emt 0:02:49]} 44. Rc1 {[%emt 0:00:31]} Re5 {[%emt 0:03:42]} 45. Nd7 {[%emt 0:01:34]} Re7 {[%emt 0:00:33]} 46. Nb8 {[%emt 0:01:58]} Ne5 {[%emt 0:00:54]} 47. Nc6 {[%emt 0:07:55]} Nxc6 {[%emt 0:01:08]} 48. bxc6 {[%emt 0:00:01]} Bf3 {[%emt 0:01:55]} 49. Nb5 {[%emt 0:02:53]} Bxc6 {[%emt 0:00:58]} 50. Nd6+ {[%emt 0:00:04]} Ke6 {[%emt 0:01:10]} 51. Nxc4 {[%emt 0:00:11]} Be4 {[%emt 0:00:47]} 52. Nd2 {[%emt 0:04:28]} Bd5 {[%emt 0:02:04]} 53. Kf2 {[%emt 0:00:36]} Rb7 {[%emt 0:02:13]} 54. Ke3 {[%emt 0:01:25]} Ke5 {[%emt 0:00:28]} 55. Rc5 {[%emt 0:01:18]} f4+ {[%emt 0:00:30]} 56. gxf4+ {[%emt 0:00:29]} gxf4+ {[%emt 0:00:02]} 57. Kd3 {[%emt 0:00:04]} Ke6 {[%emt 0:00:57]} 58. Ra5 {[%emt 0:00:21]} Rd7 {[%emt 0:02:06]} 59. Ra6+ {[%emt 0:01:16]} Bc6+ {[%emt 0:01:41]} 60. Ke2 {[%emt 0:00:39]} Kd5 {[%emt 0:00:29]} 61. Ra5+ {[%emt 0:00:41]} Kd4 {[%emt 0:00:36]} 62. Nf3+ {[%emt 0:00:42]} Bxf3+ {[%emt 0:01:06]} 63. Kxf3 {[%emt 0:00:01]} Rf7 {[%emt 0:00:35]} 64. Ra6 {[%emt 0:01:17]} h5 {[%emt 0:00:38]} 65. Ra5 {[%emt 0:00:02]} h4 {[%emt 0:03:07]} 66. Rh5 {[%emt 0:00:02]} Kc3 {[%emt 0:00:57]} 67. Rxh4 {[%emt 0:00:22]} Kb3 {[%emt 0:00:09]} 68. Rxf4 {[%emt 0:00:20]} Rh7 {[%emt 0:00:03]} 69. h4 {[%emt 0:00:52]} 1/2-1/2

[Event "WSTCC-50 2024"]
[Site "Krakow"]
[Date "2024.07.02"]
[Round "1.21"]
[White "Slabek, Grzegorz"]
[Black "Crocker, Philip J"]
[Result "1/2-1/2"]
[ECO "D04"]
[WhiteElo "1962"]
[BlackElo "2122"]
[Annotator "NA RC"]
[PlyCount "54"]
[EventDate "2024.07.01"]
[EventType "team-tourn"]
[EventCountry "POL"]
[SourceTitle "playchess.com"]
[Source "ChessBase"]
[SourceQuality "1"]
[TimeControl "40/5400+30:1800+30"]

1. Nf3 {[%emt 0:00:05]} d5 {[%emt 0:00:06]} 2. d4 {[%emt 0:00:10]} Nf6 {[%emt 0:00:06]} 3. e3 {[%emt 0:00:17]} c6 {[%emt 0:00:20]} 4. Be2 {[%emt 0:00:25]} Bf5 {[%emt 0:01:00]} 5. O-O {[%emt 0:01:17]} h6 {[%emt 0:01:28]} 6. b3 {[%emt 0:01:39]} e6 {[%emt 0:01:14]} 7. Bb2 {[%emt 0:01:11]} Nbd7 {[%emt 0:01:03]} 8. Nbd2 {[%emt 0:00:21]} Ne4 {[%emt 0:05:06]} 9. c4 {[%emt 0:00:49]} Bd6 {[%emt 0:01:21]} 10. Ne5 {[%emt 0:00:29]} O-O {[%emt 0:04:23]} 11. f3 {[%emt 0:06:55]} Nxd2 {[%emt 0:02:47]} 12. Qxd2 {[%emt 0:00:08]} Nxe5 {[%emt 0:05:32]} 13. dxe5 {[%emt 0:00:12]} Bc5 {[%emt 0:01:53]} 14. Bd4 {[%emt 0:01:15]} Be7 {[%emt 0:05:33]} 15. cxd5 {[%emt 0:00:44]} cxd5 {[%emt 0:04:04]} 16. Rac1 {[%emt 0:01:05]} Qd7 {[%emt 0:01:41]} 17. Bc5 {[%emt 0:01:32]} Rfc8 {[%emt 0:02:53]} 18. Bxe7 {[%emt 0:01:05]} Qxe7 {[%emt 0:00:55]} 19. Rc3 {[%emt 0:00:15]} Rc7 {[%emt 0:03:26]} 20. Rfc1 {[%emt 0:03:57]} Rac8 {[%emt 0:02:11]} 21. Qd4 {[%emt 0:00:39]} b6 {[%emt 0:02:27]} 22. b4 {[%emt 0:01:07]} Rxc3 {[%emt 0:08:44]} 23. Rxc3 {[%emt 0:00:14]} Rc7 {[%emt 0:01:46]} 24. a3 {[%emt 0:01:44]} a5 {[%emt 0:05:10]} 25. Bb5 {[%emt 0:03:57]} axb4 {[%emt 0:01:34]} 26. axb4 {[%emt 0:00:12]} Rxc3 {[%emt 0:01:09]} 27. Qxc3 {[%emt 0:00:10]} Qa7 {[%emt 0:01:28]} 1/2-1/2

[Event "WSTCC-50 2024"]
[Site "Krakow"]
[Date "2024.07.02"]
[Round "1.22"]
[White "Cummings, David H."]
[Black "Norinkeviciute, Rasa"]
[Result "1-0"]
[ECO "A55"]
[WhiteElo "2314"]
[BlackElo "1922"]
[Annotator "RC"]
[PlyCount "115"]
[EventDate "2024.07.01"]
[EventType "team-tourn"]
[EventCountry "POL"]
[SourceTitle "playchess.com"]
[Source "ChessBase"]
[SourceQuality "1"]
[TimeControl "40/5400+30:1800+30"]

1. c4 {[%emt 0:00:10]} Nf6 {[%emt 0:00:51]} 2. Nc3 {[%emt 0:00:27]} e5 {[%emt 0:02:24]} 3. Nf3 {[%emt 0:00:29]} d6 {[%emt 0:01:16]} 4. d4 {[%emt 0:00:19]} Nbd7 {[%emt 0:01:12]} 5. e4 {[%emt 0:00:22]} c6 {[%emt 0:00:22]} 6. Be2 {[%emt 0:00:24]} Be7 {[%emt 0:00:27]} 7. O-O {[%emt 0:00:11]} h6 {[%emt 0:00:48]} 8. Re1 {[%emt 0:02:24]} Qc7 {[%emt 0:00:29]} 9. Rb1 {[%emt 0:01:28]} Nf8 {[%emt 0:08:34]} 10. b4 {[%emt 0:07:37]} g5 {[%emt 0:03:05]} 11. d5 {[%emt 0:18:56]} Ng6 {[%emt 0:03:52]} 12. dxc6 {[%emt 0:04:42]} bxc6 {[%emt 0:01:05]} 13. b5 {[%emt 0:00:27]} Bd7 {[%emt 0:05:05]} 14. bxc6 {[%emt 0:02:36]} Qxc6 {[%emt 0:04:13]} 15. Nd2 {[%emt 0:04:26]} Nf4 {[%emt 0:02:49]} 16. Bf1 {[%emt 0:05:51]} O-O {[%emt 0:08:06]} 17. Nd5 {[%emt 0:03:22]} N6xd5 {[%emt 0:28:15]} 18. cxd5 {[%emt 0:00:20]} Qc7 {[%emt 0:00:29]} 19. Nc4 {[%emt 0:06:13]} Rab8 {[%emt 0:03:20]} 20. Be3 {[%emt 0:07:09]} Rxb1 {[%emt 0:02:05]} 21. Qxb1 {[%emt 0:00:05]} Rb8 {[%emt 0:02:06]} 22. Qc1 {[%emt 0:00:59]} Rb4 {[%emt 0:07:51]} 23. Qc2 {[%emt 0:12:13]} Bd8 {[%emt 0:06:24]} 24. Rc1 {[%emt 0:00:48]} Qb8 {[%emt 0:00:36]} 25. Bd2 {[%emt 0:02:42]} Ba4 {[%emt 0:03:10]} 26. Qc3 {[%emt 0:01:17]} Rb1 {[%emt 0:01:09]} 27. g3 {[%emt 0:03:10]} Rxc1 {[%emt 0:02:02]} 28. Qxc1 {[%emt 0:00:46]} Ng6 {[%emt 0:01:21]} 29. Qa3 {[%emt 0:00:34]} Bc2 {[%emt 0:00:28]} 30. Qxd6 {[%emt 0:03:56]} Bc7 {[%emt 0:00:29]} 31. Qb4 {[%emt 0:04:43]} Bxe4 {[%emt 0:00:22]} 32. d6 {[%emt 0:00:25]} Qxb4 {[%emt 0:00:40]} 33. Bxb4 {[%emt 0:00:02]} Bd8 {[%emt 0:00:21]} 34. Bc5 {[%emt 0:00:27]} a5 {[%emt 0:01:04]} 35. Bh3 {[%emt 0:03:29]} f5 {[%emt 0:00:20]} 36. d7 {[%emt 0:01:16]} g4 {[%emt 0:00:24]} 37. Bf1 {[%emt 0:00:54]} Kf7 {[%emt 0:00:34]} 38. Nd6+ {[%emt 0:00:46]} Ke6 {[%emt 0:00:17]} 39. Bb5 {[%emt 0:01:17]} Ne7 {[%emt 0:00:33]} 40. Nxe4 {[%emt 0:01:43]} fxe4 {[%emt 0:00:03]} 41. h3 {[%emt 0:04:07]} h5 {[%emt 0:09:02]} 42. hxg4 {[%emt 0:02:43]} hxg4 {[%emt 0:00:07]} 43. Kf1 {[%emt 0:01:17]} Kf5 {[%emt 0:06:04]} 44. Bc4 {[%emt 0:08:04]} Nc6 {[%emt 0:01:37]} 45. Ke2 {[%emt 0:00:28]} Nd4+ {[%emt 0:01:33]} 46. Kd2 {[%emt 0:01:15]} Ne6 {[%emt 0:04:18]} 47. Ba7 {[%emt 0:01:38]} Nd4 {[%emt 0:03:19]} 48. Bd5 {[%emt 0:01:56]} Bg5+ {[%emt 0:01:15]} 49. Kd1 {[%emt 0:00:53]} Bd8 {[%emt 0:05:07]} 50. a4 {[%emt 0:01:13]} Bc7 {[%emt 0:01:28]} 51. Kd2 {[%emt 0:01:06]} Ne6 {[%emt 0:00:38]} 52. Kc3 {[%emt 0:01:07]} Nf8 {[%emt 0:01:24]} 53. Bc6 {[%emt 0:00:23]} Ke6 {[%emt 0:00:49]} 54. Kc4 {[%emt 0:03:08]} Ng6 {[%emt 0:01:09]} 55. Kb5 {[%emt 0:00:57]} Kd6 {[%emt 0:00:35]} 56. Bc5+ {[%emt 0:00:39]} Ke6 {[%emt 0:00:05]} 57. Bb6 {[%emt 0:00:10]} Kd6 {[%emt 0:00:50]} 58. d8=Q+ {[%emt 0:00:24]} 1-0

[Event "WSTCC-50 2024"]
[Site "Krakow"]
[Date "2024.07.02"]
[Round "1.22"]
[White "Burrows, Martin P"]
[Black "Kawula, Andrzej"]
[Result "1/2-1/2"]
[ECO "C17"]
[WhiteElo "2019"]
[BlackElo "1847"]
[Annotator "NA RC"]
[PlyCount "91"]
[EventDate "2024.07.01"]
[EventType "team-tourn"]
[EventCountry "POL"]
[SourceTitle "playchess.com"]
[Source "ChessBase"]
[SourceQuality "1"]
[TimeControl "40/5400+30:1800+30"]

1. e4 {[%emt 0:00:07]} e6 {[%emt 0:00:20]} 2. d4 {[%emt 0:00:07]} d5 {[%emt 0:00:04]} 3. Nc3 {[%emt 0:00:09]} Bb4 {[%emt 0:00:16]} 4. e5 {[%emt 0:00:11]} c5 {[%emt 0:00:18]} 5. a3 {[%emt 0:00:10]} cxd4 {[%emt 0:00:52]} 6. axb4 {[%emt 0:00:46]} dxc3 {[%emt 0:00:07]} 7. Nf3 {[%emt 0:03:56]} Qc7 {[%emt 0:02:47]} 8. Qd4 {[%emt 0:06:20]} cxb2 {[%emt 0:02:47]} 9. Bxb2 {[%emt 0:04:10]} Nc6 {[%emt 0:04:23]} 10. Qc3 {[%emt 0:14:56]} Qb6 {[%emt 0:15:52]} 11. b5 {[%emt 0:01:33]} Nce7 {[%emt 0:09:37]} 12. Bd3 {[%emt 0:01:55]} Bd7 {[%emt 0:00:16]} 13. O-O {[%emt 0:02:45]} Rc8 {[%emt 0:10:06]} 14. Qb3 {[%emt 0:01:15]} Ng6 {[%emt 0:00:25]} 15. Bd4 {[%emt 0:01:17]} Qc7 {[%emt 0:00:56]} 16. g3 {[%emt 0:06:43]} N8e7 {[%emt 0:08:07]} 17. Rxa7 {[%emt 0:02:50]} O-O {[%emt 0:01:02]} 18. Rfa1 {[%emt 0:06:34]} f6 {[%emt 0:02:17]} 19. Qb2 {[%emt 0:03:36]} Nf5 {[%emt 0:04:36]} 20. Bxf5 {[%emt 0:05:26]} exf5 {[%emt 0:02:35]} 21. exf6 {[%emt 0:00:32]} f4 {[%emt 0:01:42]} 22. fxg7 {[%emt 0:07:37]} Rf7 {[%emt 0:05:49]} 23. Ne1 {[%emt 0:03:38]} fxg3 {[%emt 0:02:24]} 24. hxg3 {[%emt 0:00:24]} Bh3 {[%emt 0:05:14]} 25. Ra8 {[%emt 0:02:29]} Re7 {[%emt 0:06:05]} 26. Qc3 {[%emt 0:04:42]} Qxc3 {[%emt 0:03:47]} 27. Bxc3 {[%emt 0:00:13]} Rec7 {[%emt 0:00:12]} 28. Bd4 {[%emt 0:03:00]} Ne7 {[%emt 0:00:27]} 29. c3 {[%emt 0:03:30]} Nf5 {[%emt 0:01:03]} 30. Be5 {[%emt 0:00:25]} Rc4 {[%emt 0:00:24]} 31. Rxc8+ {[%emt 0:01:04]} Rxc8 {[%emt 0:00:08]} 32. Nd3 {[%emt 0:00:25]} Nxg7 {[%emt 0:00:18]} 33. Nf4 {[%emt 0:01:36]} Bg4 {[%emt 0:01:31]} 34. Nxd5 {[%emt 0:01:24]} Kf7 {[%emt 0:00:29]} 35. f4 {[%emt 0:03:52]} Bf3 {[%emt 0:00:57]} 36. Ne3 {[%emt 0:00:59]} Rc5 {[%emt 0:01:45]} 37. Kf2 {[%emt 0:00:59]} Be4 {[%emt 0:00:15]} 38. Rd1 {[%emt 0:05:35]} Ne8 {[%emt 0:00:44]} 39. c4 {[%emt 0:00:31]} Nf6 {[%emt 0:01:46]} 40. Rd6 {[%emt 0:01:15]} Ne8 {[%emt 0:00:53]} 41. Rd4 {[%emt 0:30:25]} Bb1 {[%emt 0:31:22]} 42. Rd7+ {[%emt 0:00:00]} Ke6 {[%emt 0:00:00]} 43. Rxb7 {[%emt 0:00:00]} Bd3 {[%emt 0:00:00]} 44. Bd4 {[%emt 0:00:00]} Rh5 {[%emt 0:00:00]} 45. g4 {[%emt 0:00:00]} Rh3 {[%emt 0:00:00]} 46. f5+ {[%emt 0:00:00]} 1/2-1/2

[Event "WSTCC-50 2024"]
[Site "Krakow"]
[Date "2024.07.02"]
[Round "1.23"]
[White "Baliuniene, Margarita"]
[Black "Barron, Michael"]
[Result "0-1"]
[ECO "A88"]
[WhiteElo "1960"]
[BlackElo "2046"]
[Annotator "NA RC"]
[PlyCount "112"]
[EventDate "2024.07.01"]
[EventType "team-tourn"]
[EventCountry "POL"]
[SourceTitle "playchess.com"]
[Source "ChessBase"]
[SourceQuality "1"]
[TimeControl "40/5400+30:1800+30"]

1. d4 {[%emt 0:00:07]} f5 {[%emt 0:00:03]} 2. g3 {[%emt 0:00:28]} Nf6 {[%emt 0:00:02]} 3. Bg2 {[%emt 0:00:07]} g6 {[%emt 0:00:04]} 4. c4 {[%emt 0:00:16]} Bg7 {[%emt 0:00:02]} 5. Nc3 {[%emt 0:01:12]} O-O {[%emt 0:00:05]} 6. Nf3 {[%emt 0:01:01]} d6 {[%emt 0:00:02]} 7. O-O {[%emt 0:01:07]} c6 {[%emt 0:00:02]} 8. b3 {[%emt 0:04:04]} Qc7 {[%emt 0:00:39]} 9. Bb2 {[%emt 0:00:29]} e5 {[%emt 0:00:44]} 10. d5 {[%emt 0:03:36]} h6 {[%emt 0:08:55]} 11. e4 {[%emt 0:07:57]} fxe4 {[%emt 0:26:52]} 12. Nd2 {[%emt 0:01:02]} Bg4 {[%emt 0:01:42]} 13. Qe1 {[%emt 0:01:28]} cxd5 {[%emt 0:00:57]} 14. cxd5 {[%emt 0:02:45]} Na6 {[%emt 0:01:26]} 15. Ndxe4 {[%emt 0:01:55]} Nc5 {[%emt 0:01:12]} 16. Nxc5 {[%emt 0:00:46]} Qxc5 {[%emt 0:00:16]} 17. Rc1 {[%emt 0:04:13]} Qa5 {[%emt 0:01:17]} 18. h3 {[%emt 0:02:49]} Bf5 {[%emt 0:02:16]} 19. Qe2 {[%emt 0:06:16]} a6 {[%emt 0:08:21]} 20. a3 {[%emt 0:01:50]} g5 {[%emt 0:03:19]} 21. b4 {[%emt 0:08:22]} Qd8 {[%emt 0:00:24]} 22. b5 {[%emt 0:01:09]} Qb6 {[%emt 0:12:49]} 23. a4 {[%emt 0:02:51]} Rac8 {[%emt 0:00:54]} 24. Ba3 {[%emt 0:04:16]} Rf7 {[%emt 0:01:24]} 25. bxa6 {[%emt 0:14:31]} bxa6 {[%emt 0:00:26]} 26. g4 {[%emt 0:06:34]} Bg6 {[%emt 0:00:56]} 27. Ne4 {[%emt 0:01:47]} Rxc1 {[%emt 0:00:14]} 28. Nxf6+ {[%emt 0:01:20]} Rxf6 {[%emt 0:00:28]} 29. Rxc1 {[%emt 0:01:14]} Qb3 {[%emt 0:00:34]} 30. Qb2 {[%emt 0:02:13]} Qxa4 {[%emt 0:00:47]} 31. Qb4 {[%emt 0:01:57]} Qxb4 {[%emt 0:01:37]} 32. Bxb4 {[%emt 0:00:02]} Bd3 {[%emt 0:00:31]} 33. Rc6 {[%emt 0:01:44]} Bf8 {[%emt 0:01:25]} 34. Bf1 {[%emt 0:03:31]} e4 {[%emt 0:00:02]} 35. Rc3 {[%emt 0:04:38]} Rf4 {[%emt 0:02:22]} 36. Ba3 {[%emt 0:04:15]} Bxf1 {[%emt 0:05:59]} 37. Kxf1 {[%emt 0:00:02]} Rf3 {[%emt 0:00:56]} 38. Rxf3 {[%emt 0:00:57]} exf3 {[%emt 0:00:02]} 39. Ke1 {[%emt 0:00:48]} Bg7 {[%emt 0:06:03]} 40. Bxd6 {[%emt 0:01:08]} Bd4 {[%emt 0:00:15]} 41. Bg3 {[%emt 0:33:06]} Kf7 {[%emt 0:30:02]} 42. Kd2 {[%emt 0:00:10]} Kf6 {[%emt 0:00:22]} 43. d6 {[%emt 0:00:00]} Ke6 {[%emt 0:00:00]} 44. Kd3 {[%emt 0:00:00]} Bc5 {[%emt 0:00:00]} 45. d7 {[%emt 0:00:00]} Kxd7 {[%emt 0:00:00]} 46. Ke4 {[%emt 0:00:00]} Bd6 {[%emt 0:00:00]} 47. Kxf3 {[%emt 0:00:00]} Bxg3 {[%emt 0:00:00]} 48. Kxg3 {[%emt 0:00:00]} a5 {[%emt 0:00:00]} 49. f4 {[%emt 0:00:00]} a4 {[%emt 0:00:00]} 50. fxg5 {[%emt 0:00:00]} hxg5 {[%emt 0:00:00]} 51. h4 {[%emt 0:00:00]} a3 {[%emt 0:00:00]} 52. hxg5 {[%emt 0:00:00]} a2 {[%emt 0:00:00]} 53. g6 {[%emt 0:00:00]} a1=Q {[%emt 0:00:00]} 54. Kh4 {[%emt 0:00:00]} Ke6 {[%emt 0:00:00]} 55. Kg5 {[%emt 0:00:00]} Qg7 {[%emt 0:00:00]} 56. Kh5 {[%emt 0:00:00]} Kf6 {[%emt 0:00:00]} 0-1

[Event "WSTCC-50 2024"]
[Site "Krakow"]
[Date "2024.07.02"]
[Round "1.23"]
[White "Czernicki, Bogdan"]
[Black "Fraser-Mitchell, Jeremy N"]
[Result "1/2-1/2"]
[ECO "A80"]
[WhiteElo "1886"]
[BlackElo "2036"]
[Annotator "NA RC"]
[PlyCount "63"]
[EventDate "2024.07.01"]
[EventType "team-tourn"]
[EventCountry "POL"]
[SourceTitle "playchess.com"]
[Source "ChessBase"]
[SourceQuality "1"]
[TimeControl "40/5400+30:1800+30"]

1. d4 {[%emt 0:00:08]} f5 {[%emt 0:00:03]} 2. Nc3 {[%emt 0:00:31]} Nf6 {[%emt 0:00:10]} 3. Bg5 {[%emt 0:00:33]} d5 {[%emt 0:00:09]} 4. e3 {[%emt 0:01:57]} e6 {[%emt 0:06:54]} 5. Nf3 {[%emt 0:02:54]} Be7 {[%emt 0:00:14]} 6. Be2 {[%emt 0:02:29]} O-O {[%emt 0:00:53]} 7. O-O {[%emt 0:02:12]} c6 {[%emt 0:10:32]} 8. Ne5 {[%emt 0:02:08]} Nbd7 {[%emt 0:00:10]} 9. Bxf6 {[%emt 0:00:56]} Nxf6 {[%emt 0:04:45]} 10. f4 {[%emt 0:02:10]} Bd7 {[%emt 0:03:01]} 11. a3 {[%emt 0:01:07]} c5 {[%emt 0:02:40]} 12. g4 {[%emt 0:05:04]} cxd4 {[%emt 0:04:47]} 13. exd4 {[%emt 0:00:22]} Ne4 {[%emt 0:07:20]} 14. gxf5 {[%emt 0:01:16]} Nxc3 {[%emt 0:00:10]} 15. bxc3 {[%emt 0:00:14]} exf5 {[%emt 0:01:03]} 16. Bf3 {[%emt 0:03:12]} Be6 {[%emt 0:04:31]} 17. Re1 {[%emt 0:01:56]} Bh4 {[%emt 0:02:43]} 18. Re2 {[%emt 0:01:12]} Qf6 {[%emt 0:08:00]} 19. Rg2 {[%emt 0:01:53]} Rac8 {[%emt 0:02:52]} 20. Qd2 {[%emt 0:00:37]} Rc7 {[%emt 0:00:55]} 21. Rb1 {[%emt 0:02:24]} Rd8 {[%emt 0:03:15]} 22. Rb3 {[%emt 0:03:01]} Qf8 {[%emt 0:06:11]} 23. Qe3 {[%emt 0:00:43]} Qd6 {[%emt 0:01:16]} 24. Re2 {[%emt 0:01:46]} Bf6 {[%emt 0:02:21]} 25. Bg2 {[%emt 0:05:36]} Bxe5 {[%emt 0:03:08]} 26. Qxe5 {[%emt 0:00:21]} Qxe5 {[%emt 0:00:24]} 27. Rxe5 {[%emt 0:00:09]} Kf7 {[%emt 0:01:02]} 28. Kf2 {[%emt 0:01:20]} b6 {[%emt 0:00:55]} 29. Ke3 {[%emt 0:01:44]} Kf6 {[%emt 0:01:13]} 30. Kd2 {[%emt 0:01:40]} h6 {[%emt 0:04:08]} 31. h4 {[%emt 0:02:42]} g6 {[%emt 0:00:08]} 32. Re3 1/2-1/2

[Event "WSTCC-50 2024"]
[Site "Krakow"]
[Date "2024.07.02"]
[Round "1.24"]
[White "Findlay, Ian T."]
[Black "Buriene, Regina"]
[Result "1-0"]
[ECO "C68"]
[WhiteElo "2118"]
[BlackElo "1904"]
[Annotator "NA RC"]
[PlyCount "99"]
[EventDate "2024.07.01"]
[EventType "team-tourn"]
[EventCountry "POL"]
[SourceTitle "playchess.com"]
[Source "ChessBase"]
[SourceQuality "1"]
[TimeControl "40/5400+30:1800+30"]

1. e4 {[%emt 0:00:05]} e5 {[%emt 0:00:06]} 2. Nf3 {[%emt 0:00:06]} Nc6 {[%emt 0:00:20]} 3. Bb5 {[%emt 0:00:11]} a6 {[%emt 0:01:34]} 4. Bxc6 {[%emt 0:00:09]} dxc6 {[%emt 0:01:16]} 5. O-O {[%emt 0:00:11]} Bg4 {[%emt 0:04:50]} 6. h3 {[%emt 0:00:09]} Bxf3 {[%emt 0:00:18]} 7. Qxf3 {[%emt 0:00:04]} Bc5 {[%emt 0:08:44]} 8. d3 {[%emt 0:03:55]} Qd7 {[%emt 0:09:49]} 9. Nd2 {[%emt 0:05:32]} O-O-O {[%emt 0:09:42]} 10. Nc4 {[%emt 0:03:34]} f6 {[%emt 0:00:24]} 11. Be3 {[%emt 0:01:03]} Bxe3 {[%emt 0:00:49]} 12. Qxe3 {[%emt 0:00:15]} Kb8 {[%emt 0:01:09]} 13. f4 {[%emt 0:14:03]} exf4 {[%emt 0:01:31]} 14. Rxf4 {[%emt 0:00:14]} Ne7 {[%emt 0:00:25]} 15. Raf1 {[%emt 0:01:31]} Rhe8 {[%emt 0:01:24]} 16. Qf2 {[%emt 0:03:18]} Ng6 {[%emt 0:08:07]} 17. Rf5 {[%emt 0:02:11]} Qd4 {[%emt 0:12:07]} 18. Rh5 {[%emt 0:04:54]} h6 {[%emt 0:01:59]} 19. Qxd4 {[%emt 0:00:35]} Rxd4 {[%emt 0:00:02]} 20. Rf3 {[%emt 0:00:59]} Rd7 {[%emt 0:00:03]} 21. Rg3 {[%emt 0:03:13]} Nf4 {[%emt 0:00:57]} 22. Rf5 {[%emt 0:02:05]} Ne2+ {[%emt 0:00:10]} 23. Kf2 {[%emt 0:00:07]} Nxg3 {[%emt 0:00:06]} 24. Kxg3 {[%emt 0:00:05]} b6 {[%emt 0:01:59]} 25. Kg4 {[%emt 0:00:44]} Rde7 {[%emt 0:06:53]} 26. Kh5 {[%emt 0:00:38]} Kc8 {[%emt 0:00:56]} 27. Kg6 {[%emt 0:00:12]} b5 {[%emt 0:00:24]} 28. Na5 {[%emt 0:04:38]} Re5 {[%emt 0:01:08]} 29. Nxc6 {[%emt 0:03:00]} Rxf5 {[%emt 0:00:25]} 30. exf5 {[%emt 0:06:14]} Re2 {[%emt 0:02:18]} 31. Kxg7 {[%emt 0:00:07]} Rxg2+ {[%emt 0:00:58]} 32. Kxf6 {[%emt 0:00:07]} Rxc2 {[%emt 0:05:59]} 33. Nd4 {[%emt 0:10:38]} Rxb2 {[%emt 0:00:09]} 34. Ke7 {[%emt 0:00:16]} c5 {[%emt 0:07:27]} 35. Ne6 {[%emt 0:02:09]} c4 {[%emt 0:00:18]} 36. dxc4 {[%emt 0:00:13]} bxc4 {[%emt 0:00:24]} 37. f6 {[%emt 0:02:10]} c3 {[%emt 0:06:49]} 38. Nd4 {[%emt 0:00:31]} Rxa2 {[%emt 0:05:23]} 39. f7 {[%emt 0:00:28]} Rf2 {[%emt 0:00:13]} 40. f8=Q+ {[%emt 0:00:16]} Rxf8 {[%emt 0:00:09]} 41. Kxf8 {[%emt 0:30:05]} a5 {[%emt 0:30:09]} 42. Kg7 {[%emt 0:01:51]} Kd7 {[%emt 0:00:32]} 43. Kxh6 {[%emt 0:00:23]} Ke7 {[%emt 0:01:19]} 44. Kg7 {[%emt 0:00:36]} Kd6 {[%emt 0:00:23]} 45. h4 {[%emt 0:21:45]} Kc5 {[%emt 0:00:41]} 46. Ne2 {[%emt 0:00:29]} c2 {[%emt 0:00:53]} 47. h5 {[%emt 0:00:09]} Kc4 {[%emt 0:00:21]} 48. h6 {[%emt 0:00:07]} Kd3 {[%emt 0:00:00]} 49. Nc1+ {[%emt 0:00:00]} Kd2 {[%emt 0:00:00]} 50. Na2 {[%emt 0:00:00]} 1-0